[Event "*** Titled Tuesday Blitz"]
[Site "Chess.com"]
[Date "2018.07.03"]
[Round "5"]
[White "Alopekos"]
[Black "grandmastergauri"]
[Result "1-0"]
[WhiteElo "2421"]
[BlackElo "2473"]
[TimeControl "180+2"]
[EndTime "14:03:36 PDT"]
[Termination "Alopekos won by resignation"]

1. e4 {[%clk 0:03:01.9]} 1... c6 {[%clk 0:02:50.7]} 2. d4 {[%clk 0:03:02.7]}
2... d5 {[%clk 0:02:50.7]} 3. Nd2 {[%clk 0:03:04.1]} 3... dxe4 {[%clk
0:02:51.2]} 4. Nxe4 {[%clk 0:03:06]} 4... Bf5 {[%clk 0:02:52.5]} 5. Ng3 {[%clk
0:03:06.9]} 5... Bg6 {[%clk 0:02:54.2]} 6. h4 {[%clk 0:03:08.4]} 6... h6 {[%clk
0:02:54.4]} 7. Nf3 {[%clk 0:03:09.8]} 7... Nd7 {[%clk 0:02:55.9]} 8. h5 {[%clk
0:03:11.3]} 8... Bh7 {[%clk 0:02:57.5]} 9. Bd3 {[%clk 0:03:13]} 9... Bxd3 {[%clk
0:02:59.1]} 10. Qxd3 {[%clk 0:03:14.9]} 10... e6 {[%clk 0:03:00.2]} 11. Bd2
{[%clk 0:03:16.2]} 11... Ngf6 {[%clk 0:03:01.6]} 12. O-O-O {[%clk 0:03:17.5]}
12... Be7 {[%clk 0:03:03.1]} 13. Kb1 {[%clk 0:03:18.7]} 13... Qb6 {[%clk
0:03:03.7]} 14. c4 {[%clk 0:03:17.8]} 14... c5 {[%clk 0:03:02.9]} 15. d5 {[%clk
0:03:17.2]} 15... O-O {[%clk 0:02:53.4]} 16. Rhe1 {[%clk 0:02:51.2]} 16... Rfe8
{[%clk 0:02:29]} 17. dxe6 {[%clk 0:02:37.9]} 17... fxe6 {[%clk 0:02:29.9]} 18.
Bxh6 {[%clk 0:02:39.4]} 18... Nf8 {[%clk 0:02:23.8]} 19. Bf4 {[%clk 0:02:20.2]}
19... Rad8 {[%clk 0:02:05.3]} 20. Qc2 {[%clk 0:02:19.9]} 20... Ng4 {[%clk
0:01:58.7]} 21. Ne5 {[%clk 0:02:06.8]} 21... Nxe5 {[%clk 0:01:45.4]} 22. Bxe5
{[%clk 0:02:08.7]} 22... Qc6 {[%clk 0:01:43.4]} 23. Qe2 {[%clk 0:01:42]} 23...
Bf6 {[%clk 0:01:26.7]} 24. h6 {[%clk 0:01:23.6]} 24... Rxd1+ {[%clk 0:01:24.9]}
25. Rxd1 {[%clk 0:01:23.4]} 25... Nh7 {[%clk 0:01:15.1]} 26. Nh5 {[%clk
0:00:58]} 26... Bxe5 {[%clk 0:01:02.6]} 27. Qxe5 {[%clk 0:00:56.7]} 27... Qxg2
{[%clk 0:01:00.5]} 28. Qxg7+ {[%clk 0:00:33.2]} 28... Qxg7 {[%clk 0:01:00.6]}
29. hxg7 {[%clk 0:00:35.1]} 29... Kf7 {[%clk 0:00:58.5]} 30. Rd7+ {[%clk
0:00:32.5]} 30... Kg6 {[%clk 0:00:58.8]} 31. Nf4+ {[%clk 0:00:32.4]} 31... Kf5
{[%clk 0:01:00]} 32. Nd3 {[%clk 0:00:12.4]} 32... Nf6 {[%clk 0:00:57.4]} 33.
Rxb7 {[%clk 0:00:11.2]} 33... Ke4 {[%clk 0:00:52.9]} 34. Nxc5+ {[%clk
0:00:11.3]} 34... Kd4 {[%clk 0:00:53]} 35. Rf7 {[%clk 0:00:04.6]} 35... Ng8
{[%clk 0:00:51.5]} 36. Rf8 {[%clk 0:00:03.9]} 36... Re7 {[%clk 0:00:40.3]} 37.
Rxg8 {[%clk 0:00:05.1]} 37... Kxc4 {[%clk 0:00:40.9]} 38. Nb3 {[%clk 0:00:04.3]}
38... Rd7 {[%clk 0:00:36.9]} 39. Rc8+ {[%clk 0:00:05]} 39... Kd3 {[%clk
0:00:38.4]} 40. g8=Q {[%clk 0:00:05.8]} 40... Ke2 {[%clk 0:00:39.4]} 41. Qg4+
{[%clk 0:00:06.7]} 41... Ke1 {[%clk 0:00:40.7]} 42. Rc1+ {[%clk 0:00:07.4]}
42... Kxf2 {[%clk 0:00:40.4]} 43. Rc2+ {[%clk 0:00:07.6]} 1-0

[Event "*** Titled Tuesday Blitz"]
[Site "Chess.com"]
[Date "2018.07.03"]
[Round "5"]
[White "ahmadzada13"]
[Black "SARGISMV"]
[Result "1-0"]
[WhiteElo "2499"]
[BlackElo "2327"]
[TimeControl "180+2"]
[EndTime "14:03:37 PDT"]
[Termination "ahmadzada13 won by resignation"]

1. e3 {[%clk 0:03:01.9]} 1... g6 {[%clk 0:02:55.9]} 2. d4 {[%clk 0:03:02.9]}
2... Bg7 {[%clk 0:02:56.8]} 3. c4 {[%clk 0:03:04.2]} 3... c5 {[%clk 0:02:57.4]}
4. Nc3 {[%clk 0:03:01.2]} 4... Nf6 {[%clk 0:02:58.2]} 5. Nf3 {[%clk 0:03:00.8]}
5... O-O {[%clk 0:02:58.2]} 6. d5 {[%clk 0:03:01.9]} 6... e6 {[%clk 0:02:58.8]}
7. Be2 {[%clk 0:02:55.3]} 7... exd5 {[%clk 0:02:57.7]} 8. cxd5 {[%clk
0:02:56.7]} 8... d6 {[%clk 0:02:58.5]} 9. O-O {[%clk 0:02:57.5]} 9... Re8 {[%clk
0:02:57.5]} 10. Nd2 {[%clk 0:02:55]} 10... Nbd7 {[%clk 0:02:56.8]} 11. h3 {[%clk
0:02:45.5]} 11... a6 {[%clk 0:02:56.1]} 12. a4 {[%clk 0:02:45.9]} 12... Rb8
{[%clk 0:02:57.9]} 13. a5 {[%clk 0:02:40.7]} 13... h5 {[%clk 0:02:49.8]} 14. Nc4
{[%clk 0:02:34.9]} 14... Ne5 {[%clk 0:02:49.4]} 15. Nb6 {[%clk 0:02:35.7]} 15...
Nfd7 {[%clk 0:02:50.2]} 16. Nxc8 {[%clk 0:02:27.4]} 16... Rxc8 {[%clk
0:02:44.6]} 17. f4 {[%clk 0:02:28]} 17... Qh4 {[%clk 0:02:29]} 18. Qe1 {[%clk
0:02:03.8]} 18... Qe7 {[%clk 0:02:18.1]} 19. fxe5 {[%clk 0:01:57.9]} 19... Bxe5
{[%clk 0:02:13.4]} 20. Qf2 {[%clk 0:01:48.2]} 20... h4 {[%clk 0:02:11.4]} 21. e4
{[%clk 0:01:41.5]} 21... Bg3 {[%clk 0:01:54.8]} 22. Qf3 {[%clk 0:01:34.8]} 22...
Ne5 {[%clk 0:01:53.5]} 23. Qf6 {[%clk 0:01:31.8]} 23... Qf8 {[%clk 0:01:45.8]}
24. Bf4 {[%clk 0:01:18.2]} 24... Nd7 {[%clk 0:01:45.1]} 25. Qg5 {[%clk
0:01:16.5]} 25... Re5 {[%clk 0:01:38.4]} 26. Bxe5 {[%clk 0:01:14.3]} 26... Nxe5
{[%clk 0:01:39.5]} 27. Bg4 {[%clk 0:01:09.7]} 27... Re8 {[%clk 0:01:38.6]} 28.
Ne2 {[%clk 0:01:01.8]} 28... Qg7 {[%clk 0:01:03.5]} 29. Nxg3 {[%clk 0:00:59.4]}
29... hxg3 {[%clk 0:01:05.4]} 30. Qh4 {[%clk 0:00:53]} 30... Nc4 {[%clk
0:00:45.9]} 31. Qxg3 {[%clk 0:00:52.2]} 31... Rxe4 {[%clk 0:00:45.5]} 32. Rae1
{[%clk 0:00:50.9]} 32... Qd4+ {[%clk 0:00:41.7]} 33. Kh1 {[%clk 0:00:49.6]}
33... Ne3 {[%clk 0:00:41.7]} 34. Rxe3 {[%clk 0:00:38]} 34... Rxe3 {[%clk
0:00:42.2]} 35. Qxd6 {[%clk 0:00:38.5]} 35... Qxb2 {[%clk 0:00:30.7]} 36. Be6
{[%clk 0:00:30.2]} 36... Rf3 {[%clk 0:00:08.7]} 37. Rxf3 {[%clk 0:00:26.3]}
37... Qa2 {[%clk 0:00:05.7]} 1-0

[Event "*** Titled Tuesday Blitz"]
[Site "Chess.com"]
[Date "2018.07.03"]
[Round "5"]
[White "ftorodent"]
[Black "Polish_fighter3000"]
[Result "0-1"]
[WhiteElo "2510"]
[BlackElo "2756"]
[TimeControl "180+2"]
[EndTime "14:03:38 PDT"]
[Termination "Polish_fighter3000 won by checkmate"]

1. d4 {[%clk 0:03:01.9]} 1... Nf6 {[%clk 0:03:00.9]} 2. c4 {[%clk 0:03:02.5]}
2... g6 {[%clk 0:03:02]} 3. Nc3 {[%clk 0:03:02.3]} 3... Bg7 {[%clk 0:03:03.5]}
4. e4 {[%clk 0:03:02.3]} 4... O-O {[%clk 0:03:05.1]} 5. Nf3 {[%clk 0:03:03.8]}
5... d6 {[%clk 0:03:06.3]} 6. Be2 {[%clk 0:03:05.4]} 6... e5 {[%clk 0:03:06.4]}
7. O-O {[%clk 0:03:06.5]} 7... Nc6 {[%clk 0:03:07.1]} 8. d5 {[%clk 0:03:07.4]}
8... Ne7 {[%clk 0:03:07.8]} 9. Ne1 {[%clk 0:03:09.1]} 9... Nd7 {[%clk
0:03:07.5]} 10. Nd3 {[%clk 0:03:10.2]} 10... f5 {[%clk 0:03:08.1]} 11. Bd2
{[%clk 0:03:11.4]} 11... Nf6 {[%clk 0:03:00.5]} 12. f3 {[%clk 0:03:11.8]} 12...
c5 {[%clk 0:02:57.7]} 13. b4 {[%clk 0:03:10.5]} 13... b6 {[%clk 0:02:58.2]} 14.
bxc5 {[%clk 0:03:06.1]} 14... bxc5 {[%clk 0:03:00.1]} 15. Rb1 {[%clk 0:03:06.7]}
15... f4 {[%clk 0:03:00.4]} 16. Qa4 {[%clk 0:03:01.7]} 16... a6 {[%clk
0:02:47.2]} 17. Nd1 {[%clk 0:02:54.8]} 17... Bd7 {[%clk 0:02:41.8]} 18. Qa5
{[%clk 0:02:54.7]} 18... Qe8 {[%clk 0:02:25.5]} 19. Qc7 {[%clk 0:02:45.3]} 19...
Nc8 {[%clk 0:02:25.5]} 20. N1f2 {[%clk 0:02:42]} 20... Rf7 {[%clk 0:02:23.6]}
21. Qa5 {[%clk 0:02:19.5]} 21... h5 {[%clk 0:02:23.5]} 22. Rb7 {[%clk
0:02:04.6]} 22... g5 {[%clk 0:02:24.6]} 23. h3 {[%clk 0:02:05.3]} 23... Bf8
{[%clk 0:02:17.2]} 24. Rfb1 {[%clk 0:02:00.9]} 24... Rg7 {[%clk 0:02:18]} 25.
Qc3 {[%clk 0:01:31.3]} 25... a5 {[%clk 0:02:07.1]} 26. Qc1 {[%clk 0:01:19.9]}
26... a4 {[%clk 0:02:06.6]} 27. a3 {[%clk 0:01:20.3]} 27... Be7 {[%clk
0:02:01.9]} 28. Qd1 {[%clk 0:01:11.1]} 28... Bd8 {[%clk 0:02:01.7]} 29. Rb8
{[%clk 0:01:10.1]} 29... Ra7 {[%clk 0:02:00.9]} 30. R1b7 {[%clk 0:01:09.6]}
30... Ra6 {[%clk 0:02:01.7]} 31. Qb1 {[%clk 0:01:02.4]} 31... Ne7 {[%clk
0:01:52]} 32. Qd1 {[%clk 0:00:30.7]} 32... Bc8 {[%clk 0:01:46]} 33. Rb1 {[%clk
0:00:27.4]} 33... Bc7 {[%clk 0:01:46]} 34. R8b2 {[%clk 0:00:27.9]} 34... Ng6
{[%clk 0:01:46.6]} 35. Be1 {[%clk 0:00:28]} 35... Ra8 {[%clk 0:01:39.9]} 36. Rb5
{[%clk 0:00:27.9]} 36... Bd7 {[%clk 0:01:39.6]} 37. R5b2 {[%clk 0:00:28.6]}
37... Qc8 {[%clk 0:01:40.4]} 38. Rb7 {[%clk 0:00:28.6]} 38... Nh4 {[%clk
0:01:33.8]} 39. Nh1 {[%clk 0:00:28.2]} 39... Nxg2 {[%clk 0:01:18.6]} 40. Kxg2
{[%clk 0:00:29.3]} 40... g4 {[%clk 0:01:15.1]} 41. Bh4 {[%clk 0:00:26.4]} 41...
gxf3+ {[%clk 0:00:48.1]} 42. Kxf3 {[%clk 0:00:27.1]} 42... Bxh3 {[%clk
0:00:48.3]} 43. Bxf6 {[%clk 0:00:20.9]} 43... Rg2 {[%clk 0:00:48.8]} 44. Ndf2
{[%clk 0:00:18.7]} 44... Qg4+ {[%clk 0:00:49]} 45. Nxg4 {[%clk 0:00:17.6]} 45...
hxg4# {[%clk 0:00:50.8]} 0-1

[Event "*** Titled Tuesday Blitz"]
[Site "Chess.com"]
[Date "2018.07.03"]
[Round "5"]
[White "Superfelix"]
[Black "andrzej"]
[Result "1-0"]
[WhiteElo "2373"]
[BlackElo "2203"]
[TimeControl "180+2"]
[EndTime "14:03:44 PDT"]
[Termination "Superfelix won by checkmate"]

1. e4 {[%clk 0:03:01.9]} 1... c5 {[%clk 0:03:00.7]} 2. Nc3 {[%clk 0:03:02.4]}
2... a6 {[%clk 0:02:57.4]} 3. d4 {[%clk 0:03:03.1]} 3... cxd4 {[%clk 0:02:57.1]}
4. Qxd4 {[%clk 0:03:05]} 4... e6 {[%clk 0:02:56]} 5. Bf4 {[%clk 0:03:03.1]} 5...
b5 {[%clk 0:02:46.1]} 6. O-O-O {[%clk 0:02:59.6]} 6... Nc6 {[%clk 0:02:42.6]} 7.
Qe3 {[%clk 0:02:53.4]} 7... b4 {[%clk 0:02:28.2]} 8. Nd5 {[%clk 0:02:53.7]} 8...
d6 {[%clk 0:01:19.3]} 9. Nb6 {[%clk 0:02:43.2]} 9... Rb8 {[%clk 0:00:47.5]} 10.
Nc4 {[%clk 0:02:12.5]} 10... Bd7 {[%clk 0:00:19.2]} 11. Nxd6+ {[%clk 0:02:09]}
11... Bxd6 {[%clk 0:00:19.2]} 12. Bxd6 {[%clk 0:02:10.9]} 12... Ra8 {[%clk
0:00:12.4]} 13. Nf3 {[%clk 0:02:06.5]} 13... Nf6 {[%clk 0:00:12.5]} 14. Qg5
{[%clk 0:02:05.1]} 14... Rg8 {[%clk 0:00:06.5]} 15. Bd3 {[%clk 0:02:01.9]} 15...
Qa5 {[%clk 0:00:06]} 16. Qxa5 {[%clk 0:01:57.4]} 16... Nxa5 {[%clk 0:00:07.9]}
17. Ne5 {[%clk 0:01:56.8]} 17... Bb5 {[%clk 0:00:04.8]} 18. Bxb4 {[%clk
0:01:56.7]} 18... Nc6 {[%clk 0:00:04.6]} 19. Nxc6 {[%clk 0:01:57.1]} 19... Bxc6
{[%clk 0:00:05.2]} 20. f3 {[%clk 0:01:58.6]} 20... Nd7 {[%clk 0:00:05.4]} 21.
Bc3 {[%clk 0:01:55.4]} 21... a5 {[%clk 0:00:05.7]} 22. a3 {[%clk 0:01:53.4]}
22... Ke7 {[%clk 0:00:06.4]} 23. Rd2 {[%clk 0:01:52.4]} 23... f6 {[%clk
0:00:07.4]} 24. Rhd1 {[%clk 0:01:53.2]} 24... Rgc8 {[%clk 0:00:08]} 25. Kb1
{[%clk 0:01:50.7]} 25... Nc5 {[%clk 0:00:07.6]} 26. b3 {[%clk 0:01:41.4]} 26...
Kf7 {[%clk 0:00:06.2]} 27. Bc4 {[%clk 0:01:41.4]} 27... Ra7 {[%clk 0:00:03.4]}
28. Bd4 {[%clk 0:01:41.5]} 28... Be8 {[%clk 0:00:02.1]} 29. Bxc5 {[%clk
0:01:42]} 29... Rxc5 {[%clk 0:00:02.5]} 30. Rd6 {[%clk 0:01:43.5]} 30... Re7
{[%clk 0:00:02]} 31. f4 {[%clk 0:01:41.6]} 31... g6 {[%clk 0:00:02.1]} 32. g4
{[%clk 0:01:42.3]} 32... h6 {[%clk 0:00:02.2]} 33. f5 {[%clk 0:01:43.1]} 33...
gxf5 {[%clk 0:00:02.7]} 34. gxf5 {[%clk 0:01:45]} 34... Re5 {[%clk 0:00:03.9]}
35. Rxe6 {[%clk 0:01:45.1]} 35... Kf8 {[%clk 0:00:03.1]} 36. Rxe5 {[%clk
0:01:44]} 36... Rxe5 {[%clk 0:00:03.8]} 37. Bd5 {[%clk 0:01:45.3]} 37... Bb5
{[%clk 0:00:04.1]} 38. c4 {[%clk 0:01:45.8]} 38... Bd7 {[%clk 0:00:05.6]} 39.
Rf1 {[%clk 0:01:45]} 39... Re7 {[%clk 0:00:05.5]} 40. b4 {[%clk 0:01:45.6]}
40... axb4 {[%clk 0:00:05.5]} 41. axb4 {[%clk 0:01:47.5]} 41... Rg7 {[%clk
0:00:06.6]} 42. Rf2 {[%clk 0:01:46]} 42... Ke7 {[%clk 0:00:06.2]} 43. Kb2 {[%clk
0:01:47.2]} 43... Kd6 {[%clk 0:00:07.1]} 44. c5+ {[%clk 0:01:43.8]} 44... Ke5
{[%clk 0:00:07.9]} 45. c6 {[%clk 0:01:45.1]} 45... Bc8 {[%clk 0:00:08.6]} 46. b5
{[%clk 0:01:46.4]} 46... Rg1 {[%clk 0:00:07.2]} 47. b6 {[%clk 0:01:47]} 47...
Re1 {[%clk 0:00:05.5]} 48. b7 {[%clk 0:01:47.7]} 48... Bxb7 {[%clk 0:00:03.6]}
49. cxb7 {[%clk 0:01:49.6]} 49... Kd4 {[%clk 0:00:03.7]} 50. b8=Q {[%clk
0:01:49.4]} 50... Ke3 {[%clk 0:00:03.4]} 51. Qb6+ {[%clk 0:01:49.5]} 51... Kd3
{[%clk 0:00:04.1]} 52. Qb3+ {[%clk 0:01:48.7]} 52... Kd4 {[%clk 0:00:05]} 53.
Qc3# {[%clk 0:01:49.9]} 1-0

[Event "*** Titled Tuesday Blitz"]
[Site "Chess.com"]
[Date "2018.07.03"]
[Round "5"]
[White "destroyer305"]
[Black "1e41-0"]
[Result "0-1"]
[WhiteElo "2305"]
[BlackElo "2508"]
[TimeControl "180+2"]
[EndTime "14:03:48 PDT"]
[Termination "1e41-0 won by resignation"]

1. e4 {[%clk 0:03:01.9]} 1... c5 {[%clk 0:02:58.8]} 2. d4 {[%clk 0:03:02.4]}
2... cxd4 {[%clk 0:02:59.3]} 3. c3 {[%clk 0:03:03.9]} 3... Nf6 {[%clk
0:03:00.2]} 4. e5 {[%clk 0:03:04.2]} 4... Nd5 {[%clk 0:03:01.2]} 5. Nf3 {[%clk
0:03:05.7]} 5... e6 {[%clk 0:03:01.8]} 6. cxd4 {[%clk 0:03:05.9]} 6... d6 {[%clk
0:03:02.2]} 7. a3 {[%clk 0:03:07.1]} 7... Bd7 {[%clk 0:03:01.8]} 8. Bd3 {[%clk
0:03:07.2]} 8... Bc6 {[%clk 0:03:02.5]} 9. O-O {[%clk 0:03:08]} 9... Nd7 {[%clk
0:03:04]} 10. Re1 {[%clk 0:03:08]} 10... dxe5 {[%clk 0:03:00.9]} 11. dxe5 {[%clk
0:03:08.4]} 11... Be7 {[%clk 0:02:59.9]} 12. b4 {[%clk 0:03:09.6]} 12... a6
{[%clk 0:02:58.4]} 13. Ra2 {[%clk 0:03:10.7]} 13... Rc8 {[%clk 0:02:56.1]} 14.
Rc2 {[%clk 0:03:11.1]} 14... O-O {[%clk 0:02:52.3]} 15. Nc3 {[%clk 0:03:11.5]}
15... N7b6 {[%clk 0:02:48.9]} 16. Ne4 {[%clk 0:03:11.2]} 16... Bb5 {[%clk
0:02:40.6]} 17. Bxb5 {[%clk 0:03:05.7]} 17... axb5 {[%clk 0:02:42.5]} 18. Bb2
{[%clk 0:02:06.6]} 18... Rxc2 {[%clk 0:02:17.8]} 19. Qxc2 {[%clk 0:02:06.5]}
19... Nc4 {[%clk 0:02:19.7]} 20. Rd1 {[%clk 0:02:00.9]} 20... Qc7 {[%clk
0:02:15.2]} 21. Bd4 {[%clk 0:01:47.1]} 21... Rc8 {[%clk 0:02:05.6]} 22. Qb3
{[%clk 0:01:43]} 22... Nf4 {[%clk 0:02:02.4]} 23. g3 {[%clk 0:01:30]} 23... Ne2+
{[%clk 0:02:01.1]} 24. Kg2 {[%clk 0:01:29.4]} 24... Nxd4 {[%clk 0:02:03]} 25.
Rxd4 {[%clk 0:01:26.7]} 25... Nxe5 {[%clk 0:02:03.4]} 26. Nxe5 {[%clk
0:01:18.4]} 26... Qxe5 {[%clk 0:02:05.3]} 27. Qd3 {[%clk 0:01:16.7]} 27... g6
{[%clk 0:02:03.1]} 28. h4 {[%clk 0:01:16.1]} 28... Bf8 {[%clk 0:01:52.6]} 29.
Rd7 {[%clk 0:01:16.5]} 29... Rc4 {[%clk 0:01:51.1]} 30. Ng5 {[%clk 0:01:16.1]}
30... Rc3 {[%clk 0:01:25.8]} 31. Qd2 {[%clk 0:01:01.8]} 31... Rc7 {[%clk
0:01:20.4]} 32. Rd8 {[%clk 0:00:58.4]} 32... h6 {[%clk 0:01:11.8]} 33. Nf3
{[%clk 0:00:55.5]} 33... Qf6 {[%clk 0:01:12.4]} 34. Rb8 {[%clk 0:00:50]} 34...
Kg7 {[%clk 0:01:06.4]} 35. Qe2 {[%clk 0:00:40.6]} 35... Rc3 {[%clk 0:01:03.2]}
36. Rxb7 {[%clk 0:00:36.2]} 36... Rxa3 {[%clk 0:01:01.3]} 37. Ne5 {[%clk
0:00:37]} 37... Kg8 {[%clk 0:00:53.7]} 38. Rxf7 {[%clk 0:00:36.5]} 38... Qd8
{[%clk 0:00:55.1]} 39. Qg4 {[%clk 0:00:21.4]} 39... Qd5+ {[%clk 0:00:54.9]} 40.
Nf3 {[%clk 0:00:20.5]} 40... Kxf7 {[%clk 0:00:54.6]} 41. Qf4+ {[%clk 0:00:16.3]}
41... Kg8 {[%clk 0:00:54.8]} 42. g4 {[%clk 0:00:15.3]} 42... Bd6 {[%clk
0:00:54.1]} 43. Qf6 {[%clk 0:00:14.5]} 43... Qxf3+ {[%clk 0:00:49.2]} 44. Qxf3
{[%clk 0:00:11.5]} 44... Rxf3 {[%clk 0:00:50.8]} 45. Kxf3 {[%clk 0:00:13.4]}
45... Bxb4 {[%clk 0:00:52.7]} 0-1

[Event "*** Titled Tuesday Blitz"]
[Site "Chess.com"]
[Date "2018.07.03"]
[Round "5"]
[White "ama18"]
[Black "catalin009"]
[Result "0-1"]
[WhiteElo "2275"]
[BlackElo "2436"]
[TimeControl "180+2"]
[EndTime "14:03:53 PDT"]
[Termination "catalin009 won by checkmate"]

1. e4 {[%clk 0:02:57.8]} 1... c5 {[%clk 0:02:59.7]} 2. Nf3 {[%clk 0:02:58.3]}
2... Nc6 {[%clk 0:03:00.2]} 3. d4 {[%clk 0:02:59.1]} 3... cxd4 {[%clk
0:03:01.2]} 4. Nxd4 {[%clk 0:03:01]} 4... g6 {[%clk 0:03:02.8]} 5. c4 {[%clk
0:03:01.3]} 5... Bg7 {[%clk 0:02:59]} 6. Be3 {[%clk 0:02:58.8]} 6... Nf6 {[%clk
0:03:00.1]} 7. Nc3 {[%clk 0:02:59.2]} 7... O-O {[%clk 0:02:57.4]} 8. Be2 {[%clk
0:02:59.8]} 8... d6 {[%clk 0:02:57.5]} 9. Qd2 {[%clk 0:02:59.8]} 9... Bd7 {[%clk
0:02:51.5]} 10. f3 {[%clk 0:02:57.8]} 10... a5 {[%clk 0:02:40.8]} 11. Ncb5
{[%clk 0:01:49.2]} 11... a4 {[%clk 0:02:11.1]} 12. g4 {[%clk 0:01:47.9]} 12...
Ne5 {[%clk 0:01:36.4]} 13. g5 {[%clk 0:01:43]} 13... Nh5 {[%clk 0:01:11.4]} 14.
f4 {[%clk 0:01:27.8]} 14... Ng4 {[%clk 0:01:12.2]} 15. O-O-O {[%clk 0:01:08]}
15... a3 {[%clk 0:01:03.8]} 16. b3 {[%clk 0:01:07.3]} 16... Nxe3 {[%clk
0:00:31.5]} 17. Qxe3 {[%clk 0:01:05.2]} 17... e5 {[%clk 0:00:23.1]} 18. fxe5
{[%clk 0:00:58.8]} 18... dxe5 {[%clk 0:00:21.5]} 19. Nc2 {[%clk 0:00:42.4]}
19... Nf4 {[%clk 0:00:17.9]} 20. Bg4 {[%clk 0:00:20.5]} 20... Bxg4 {[%clk
0:00:04.4]} 21. Rxd8 {[%clk 0:00:22.4]} 21... Rfxd8 {[%clk 0:00:05.7]} 22. Nc3
{[%clk 0:00:21.8]} 22... Rd3 {[%clk 0:00:05.2]} 23. Qe1 {[%clk 0:00:12.4]} 23...
Rxc3 {[%clk 0:00:06.2]} 24. Kb1 {[%clk 0:00:12.5]} 24... Rd3 {[%clk 0:00:04.4]}
25. Ne3 {[%clk 0:00:13.4]} 25... Bf3 {[%clk 0:00:04]} 26. Rf1 {[%clk 0:00:13.6]}
26... Bxe4 {[%clk 0:00:04.9]} 27. Ka1 {[%clk 0:00:13.9]} 27... Bc6 {[%clk
0:00:04.8]} 28. h4 {[%clk 0:00:10.6]} 28... Rad8 {[%clk 0:00:05.6]} 29. Nd5
{[%clk 0:00:08.5]} 29... Nxd5 {[%clk 0:00:05.1]} 30. cxd5 {[%clk 0:00:09.6]}
30... Bxd5 {[%clk 0:00:06.3]} 31. Qf2 {[%clk 0:00:06.3]} 31... e4+ {[%clk
0:00:05.9]} 32. Kb1 {[%clk 0:00:07.2]} 32... e3 {[%clk 0:00:07]} 33. Qe2 {[%clk
0:00:08.1]} 33... Be4 {[%clk 0:00:07.5]} 34. Kc1 {[%clk 0:00:08.2]} 34... Rc8+
{[%clk 0:00:06.9]} 35. Kb1 {[%clk 0:00:06.3]} 35... Rd1# {[%clk 0:00:07.8]} 0-1

[Event "*** Titled Tuesday Blitz"]
[Site "Chess.com"]
[Date "2018.07.03"]
[Round "5"]
[White "josiwales"]
[Black "volodja49"]
[Result "0-1"]
[WhiteElo "2497"]
[BlackElo "2480"]
[TimeControl "180+2"]
[EndTime "14:03:56 PDT"]
[Termination "volodja49 won on time"]

1. e4 {[%clk 0:03:01.8]} 1... e6 {[%clk 0:03:00.5]} 2. d4 {[%clk 0:03:00.9]}
2... d5 {[%clk 0:03:02.1]} 3. Nd2 {[%clk 0:03:02.2]} 3... dxe4 {[%clk
0:03:02.4]} 4. Nxe4 {[%clk 0:03:03.3]} 4... Nd7 {[%clk 0:03:03.9]} 5. Nf3 {[%clk
0:03:01.7]} 5... Ngf6 {[%clk 0:03:05.3]} 6. Nxf6+ {[%clk 0:03:02.1]} 6... Nxf6
{[%clk 0:03:06.3]} 7. Bd3 {[%clk 0:03:03.6]} 7... c5 {[%clk 0:03:07.1]} 8. O-O
{[%clk 0:03:01.6]} 8... a6 {[%clk 0:03:08]} 9. Re1 {[%clk 0:02:54.8]} 9... b5
{[%clk 0:03:04.8]} 10. Bg5 {[%clk 0:02:54]} 10... Bb7 {[%clk 0:03:00.7]} 11. c3
{[%clk 0:02:52.4]} 11... h6 {[%clk 0:02:29.6]} 12. Bh4 {[%clk 0:02:35.1]} 12...
cxd4 {[%clk 0:02:24.6]} 13. Nxd4 {[%clk 0:02:26.8]} 13... Qd5 {[%clk 0:02:23.8]}
14. f3 {[%clk 0:02:27]} 14... Bc5 {[%clk 0:02:23.6]} 15. Kh1 {[%clk 0:02:25.4]}
15... Bxd4 {[%clk 0:01:33.1]} 16. cxd4 {[%clk 0:02:23.4]} 16... O-O {[%clk
0:01:33.8]} 17. Rc1 {[%clk 0:02:14.1]} 17... Rac8 {[%clk 0:01:15.5]} 18. Bxf6
{[%clk 0:02:10.6]} 18... gxf6 {[%clk 0:01:17.4]} 19. Be4 {[%clk 0:02:11.1]}
19... Qd7 {[%clk 0:01:18.1]} 20. Qd2 {[%clk 0:02:06.4]} 20... Kg7 {[%clk
0:01:15.1]} 21. Rc3 {[%clk 0:01:47.2]} 21... Rxc3 {[%clk 0:01:06.6]} 22. bxc3
{[%clk 0:01:46.9]} 22... f5 {[%clk 0:01:07.5]} 23. Bxb7 {[%clk 0:01:29]} 23...
Qxb7 {[%clk 0:01:09.4]} 24. Qf4 {[%clk 0:01:29.1]} 24... Rc8 {[%clk 0:01:05.3]}
25. Qe5+ {[%clk 0:01:29.9]} 25... Kg6 {[%clk 0:01:01.1]} 26. h4 {[%clk 0:00:54]}
26... Qc7 {[%clk 0:00:47.4]} 27. h5+ {[%clk 0:00:44.8]} 27... Kh7 {[%clk
0:00:48]} 28. Qf6 {[%clk 0:00:45]} 28... Rg8 {[%clk 0:00:43.9]} 29. Re5 {[%clk
0:00:31.9]} 29... Rg7 {[%clk 0:00:31.9]} 30. d5 {[%clk 0:00:17.6]} 30... Qxc3
{[%clk 0:00:29.7]} 31. dxe6 {[%clk 0:00:17.6]} 31... Qc1+ {[%clk 0:00:29.2]} 32.
Kh2 {[%clk 0:00:19]} 32... Qf4+ {[%clk 0:00:25.7]} 33. Kg1 {[%clk 0:00:19.9]}
33... Qd4+ {[%clk 0:00:17.3]} 34. Kh2 {[%clk 0:00:17.1]} 34... Qf4+ {[%clk
0:00:16]} 35. Kg1 {[%clk 0:00:17.6]} 35... Qd4+ {[%clk 0:00:12.2]} 36. Kh2
{[%clk 0:00:13.2]} 36... Qb2 {[%clk 0:00:13.5]} 37. Qxf5+ {[%clk 0:00:11.6]}
37... Kh8 {[%clk 0:00:13.8]} 38. Qh3 {[%clk 0:00:02.2]} 38... Qxe5+ {[%clk
0:00:12.9]} 39. Kh1 {[%clk 0:00:03.4]} 39... Qxe6 {[%clk 0:00:14.3]} 0-1